bitfinex/quotes_ETHUSD_20220105
["timestamp","ask_amount","ask_price","bid_price","bid_amount"]
[1641396316514,3.684e-05,3815.4,3815.3,15.37]
[1641396316710,8.74616478,3817.6,3815.5,15.37]
[1641396316711,0.54761054,3816.8,3815.5,15.37]
[1641396316909,0.54761054,3816.8,3816.1,0.01283269]
[1641396317109,1.33594984,3817.0,3816.2,15.748]
[1641396317313,0.9896084,3817.2,3816.4,7.1]
[1641396317557,2.65815578,3817.5,3816.7,15.37]
[1641396317844,0.00113684,3817.1,3817.0,0.83165]
[1641396318044,3.56022578,3817.6,3817.1,7.1]
[1641396318243,3.56022578,3817.6,3817.1,7.50819726]
[1641396318443,5.78151083,3818.4,3817.1,7.50819726]
[1641396318444,6.14,3817.3,3817.2,6.33752434]
[1641396318643,0.90207,3817.3,3817.2,6.63862681]
[1641396318846,0.90207,3817.3,3817.2,22.00862681]
[1641396318847,0.90320685,3817.3,3817.2,22.00862681]
[1641396319042,0.00113685,3817.3,3817.2,22.00862681]
[1641396319242,1.32706906,3818.4,3817.3,0.00113185]
[1641396319243,1.05980361,3818.4,3817.3,0.00113185]
[1641396319443,1.05980361,3818.4,3817.6,15.37]
[1641396319644,0.00568423,3818.3,3817.8,15.37]
[1641396319845,0.00568423,3818.3,3817.9,3.19076093]
[1641396320046,0.00511581,3818.2,3817.9,1.65466]
[1641396320249,0.00511581,3818.2,3818.0,0.8332095]
[1641396320450,0.00454739,3818.1,3818.0,0.8332095]
[1641396320853,0.00454739,3818.1,3817.9,1.6]
[1641396321151,7.07972551,3819.7,3817.9,1.6]
[1641396321152,0.00397896,3818.0,3817.9,0.3]
[1641396321399,0.65882896,3818.0,3817.6,3.56396866]
[1641396321597,0.49068702,3818.0,3817.7,3.01487064]
[1641396321793,1.30978,3818.4,3817.7,3.76374287]
[1641396321794,0.00341054,3817.9,3817.7,3.76374287]
[1641396321994,0.00341054,3817.9,3817.8,5.25852686]
[1641396322192,0.98090527,3819.2,3818.4,0.9019734]
[1641396322395,0.98090527,3819.2,3817.9,0.65475]
[1641396322596,1.30955,3818.7,3817.7,3.56396866]
[1641396322794,0.65485,3818.3,3817.7,3.56396866]
[1641396323193,2.16870527,3819.2,3817.3,15.37113185]
[1641396323194,0.00511581,3818.2,3817.3,15.37113185]
[1641396323393,0.00511581,3818.2,3817.3,18.87113185]
[1641396323694,0.00454739,3818.1,3818.0,0.94220098]
[1641396324095,0.00454739,3818.1,3818.0,1.54220098]
[1641396325146,0.00454739,3818.1,3818.0,0.3]
[1641396325345,0.00454739,3818.1,3817.6,1.3]
[1641396325545,0.65486,3818.0,3817.6,0.6]
[1641396325745,0.65883896,3818.0,3817.6,0.6]
[1641396325945,0.00341054,3817.9,3817.5,0.3]
[1641396326145,0.54165461,3817.8,3817.5,1.34153511]
[1641396326346,0.54449673,3817.8,3817.5,1.34153511]
[1641396326548,0.65714369,3817.7,3817.5,0.3]
[1641396326947,0.00170527,3817.6,3817.5,0.3]
[1641396327544,0.00170527,3817.6,3817.4,0.79562214]
[1641396327945,0.00113685,3817.5,3817.4,0.79562214]
[1641396328346,0.00170527,3817.5,3817.4,0.79562214]
[1641396328984,0.00170527,3817.5,3817.4,16.16562214]
[1641396329385,0.00170527,3817.5,3817.4,17.16562214]
[1641396329586,0.00170527,3817.5,3817.4,17.16671882]
[1641396330389,0.00170527,3817.5,3817.4,17.16562214]
[1641396331890,0.00170527,3817.5,3817.4,0.79562214]
[1641396333151,0.00170527,3817.5,3817.4,1.79562214]
[1641396333350,0.00170527,3817.5,3817.4,1.45045214]
[1641396333749,0.00170527,3817.5,3817.4,0.79562214]
[1641396334155,0.00170527,3817.5,3817.4,16.16562214]
[1641396334551,0.00170527,3817.5,3817.4,1.79562214]
[1641396334752,0.00170527,3817.5,3817.4,0.79562214]
[1641396335354,1.30971,3817.9,3817.4,0.79562214]
[1641396335753,0.00113685,3817.8,3817.4,0.79675899]
[1641396336154,0.00113685,3817.8,3817.5,15.37]
[1641396336155,0.65487,3817.7,3817.5,15.37]
[1641396336406,0.65487,3817.7,3817.4,0.79675899]
[1641396336607,0.65487,3817.7,3817.5,0.3]
[1641396336807,0.65487,3817.7,3817.5,15.37]
[1641396337009,0.65487,3817.7,3817.5,15.67]
[1641396337606,0.00113685,3817.8,3817.7,15.37]
[1641396338006,0.00113685,3817.8,3817.7,16.67]
[1641396338608,0.00113685,3817.8,3817.7,1.3]
[1641396338809,0.57594033,3817.8,3817.7,1.3]
[1641396339008,0.57594033,3817.8,3817.7,0.3]
[1641396339618,0.57594033,3817.8,3817.6,1.3]
[1641396340045,0.00113685,3817.8,3817.6,16.67]
[1641396340246,0.00113685,3817.8,3817.6,15.67]
[1641396340448,0.00113685,3817.8,3817.7,0.00106811]
[1641396341249,0.54508081,3817.8,3817.7,0.00106811]
[1641396341647,0.54508081,3817.8,3817.7,0.30106811]
[1641396342048,0.54508081,3817.8,3817.7,0.00106811]
[1641396342447,0.54508081,3817.8,3817.7,3.61157879]
[1641396343047,0.54508081,3817.8,3817.7,7.11157879]
[1641396343246,0.54508081,3817.8,3817.7,7.05313015]
[1641396343446,0.54508081,3817.8,3817.7,3.55313015]
[1641396345199,0.54508081,3817.8,3817.7,0.00106811]
[1641396347767,0.00113685,3817.8,3817.7,0.00106811]
[1641396348164,0.00113685,3817.8,3817.7,19.42106811]
[1641396348663,0.00113685,3817.8,3817.7,20.72106811]
[1641396348866,0.00113685,3817.8,3817.7,24.22106811]
[1641396349268,0.00113685,3817.8,3817.7,20.17106811]
[1641396349465,0.00113685,3817.8,3817.7,8.10282124]
[1641396350069,0.00113685,3817.8,3817.7,3.50106811]
[1641396350469,0.00113685,3817.8,3817.7,0.00106811]
[1641396350671,0.00113685,3817.8,3817.7,3.56517583]
[1641396351289,0.00113685,3817.8,3817.7,3.86517583]
[1641396351491,0.00113685,3817.8,3817.7,4.16517583]
[1641396352193,0.00113685,3817.8,3817.7,0.60106811]
[1641396356943,0.00113685,3817.8,3817.7,1.77975464]
[1641396357143,2.65113685,3817.8,3817.7,1.77975464]
[1641396357343,2.65113685,3817.8,3817.7,0.73215464]
[1641396357545,2.65113685,3817.8,3817.4,0.00113685]
[1641396359791,0.00113685,3817.8,3817.4,0.00113685]
[1641396361602,0.00113685,3817.8,3817.5,0.00096088]
[1641396363041,0.00113685,3817.8,3817.5,0.95585088]
[1641396363442,0.00113685,3817.8,3817.5,1.91075088]
[1641396363741,0.00113685,3817.8,3817.5,2.56568088]
[1641396363939,0.00113685,3817.8,3817.5,1.91079088]
[1641396364348,0.00113685,3817.8,3817.5,1.25589088]
[1641396365349,0.00113685,3817.8,3817.6,0.75338758]
[1641396365745,0.7205594,3818.3,3817.6,0.75338758]
[1641396365946,0.7205594,3818.3,3817.8,0.65489]
[1641396366145,0.00341054,3818.2,3817.8,0.95489]
[1641396366392,4.04511,3817.8,3817.6,0.75338758]
[1641396366792,4.04511,3817.8,3817.7,1.77863995]
[1641396367294,4.04624685,3817.8,3817.6,1.40824758]
[1641396368096,4.04624685,3817.8,3817.6,2.06311758]
[1641396368296,4.04624685,3817.8,3817.6,4.90784602]
[1641396368497,4.04624685,3817.8,3817.6,4.98834028]
[1641396369297,4.04624685,3817.8,3817.6,8.552448]
[1641396369499,4.04624685,3817.8,3817.6,5.6272253]
[1641396369898,4.04624685,3817.8,3817.6,8.53523364]
[1641396370158,4.04624685,3817.8,3817.6,5.6272253]
[1641396371158,4.04624685,3817.8,3817.6,2.06311758]
[1641396372260,4.04624685,3817.8,3817.7,0.00094942]
[1641396379160,4.04624685,3817.8,3817.7,2.98489654]
[1641396379360,4.04624685,3817.8,3817.7,0.30094942]
[1641396379559,4.04624685,3817.8,3817.7,1.50094942]
[1641396379760,4.04624685,3817.8,3817.7,15.87094942]
[1641396379961,0.48294131,3817.8,3817.7,16.57094942]
[1641396380162,0.48294131,3817.8,3817.7,0.20094942]
[1641396380364,0.48294131,3817.8,3817.7,1.20094942]
[1641396380563,0.48294131,3817.8,3817.7,3.6114601]
[1641396380965,0.48294131,3817.8,3817.7,8.46860722]
[1641396381164,0.00111068,3818.3,3817.8,7.1]
[1641396381403,0.00111068,3818.3,3818.1,0.65465]
[1641396381605,0.00227369,3818.2,3818.1,0.95465]
[1641396381805,0.00227369,3818.2,3818.1,4.35465]
[1641396382503,0.00227369,3818.2,3818.1,20.68026733]
[1641396382703,0.00227369,3818.2,3818.1,5.35026733]
[1641396383103,0.00227369,3818.2,3818.1,20.68026733]
[1641396384003,0.68938732,3818.9,3818.3,0.6547]
[1641396384303,0.68938732,3818.9,3818.5,1.3094166]
[1641396384502,0.68938732,3818.9,3818.5,1.6094166]
[1641396384707,0.92903456,3819.4,3818.7,1.77243201]
[1641396385161,0.00454739,3819.0,3818.7,2.37243201]
[1641396385560,0.00397897,3818.9,3818.7,2.37243201]
[1641396385963,0.00341054,3818.8,3818.7,0.6]
[1641396386168,0.00341054,3818.8,3818.7,0.3]
[1641396386561,0.00341054,3818.8,3818.6,0.3]
[1641396386764,0.00341054,3818.8,3818.7,2.99442922]
[1641396386965,0.00284212,3818.7,3818.6,3.30474119]
[1641396387164,0.00341054,3818.8,3818.6,19.24017226]
[1641396387364,0.00284212,3818.7,3818.6,19.64317417]
[1641396387863,0.00284212,3818.7,3818.6,20.29700579]
[1641396388065,0.00284212,3818.7,3818.6,20.95159219]
[1641396388268,0.00284212,3818.7,3818.6,28.0677988]
[1641396388568,0.00284212,3818.7,3818.6,28.72304093]
[1641396389496,0.00284212,3818.7,3818.6,28.0677988]
[1641396389897,0.00284212,3818.7,3818.6,10.4286111]
[1641396390106,0.00284212,3818.7,3818.6,7.1553747]
[1641396390903,0.00284212,3818.7,3818.2,0.65477]
[1641396391103,0.00284212,3818.7,3818.2,1.63363395]
[1641396391404,0.378,3819.3,3818.2,1.63363395]
[1641396391405,0.00227369,3818.6,3818.2,1.63363395]
[1641396391802,0.378,3819.3,3818.4,0.6547187]
[1641396391803,0.00170527,3818.5,3818.4,0.6547187]
[1641396395056,0.00170527,3818.5,3818.3,3.54486402]
[1641396395455,0.00113685,3818.4,3818.3,3.54486402]
[1641396395856,0.00113685,3818.4,3818.2,2.94315195]
[1641396396699,0.00113685,3818.4,3818.2,3.59788195]
[1641396396901,0.00113685,3818.4,3818.2,18.92788195]
[1641396397101,0.00113685,3818.4,3818.3,4.45]
[1641396397302,0.00113685,3818.4,3818.3,1.0]
[1641396397503,0.00113685,3818.4,3818.2,3.59788195]
[1641396397703,0.00113685,3818.4,3818.3,3.61051068]
[1641396397902,0.00111068,3818.8,3818.3,3.61051068]
[1641396398105,0.00111068,3818.8,3818.6,0.6546975]
[1641396398303,0.00170527,3818.7,3818.6,0.6546975]
[1641396399107,0.00170527,3818.7,3818.6,1.9640975]
[1641396402758,0.00170527,3818.7,3818.6,1.3094]
[1641396406909,0.00170527,3818.7,3818.1,1.76275724]
[1641396407106,1.0329,3818.6,3818.1,1.76275724]
[1641396407307,1.03403684,3818.6,3818.2,0.00113685]
[1641396407566,2.03403684,3818.6,3818.2,0.00113685]
[1641396407763,1.03403684,3818.6,3818.2,0.00113685]
[1641396407964,7.15431086,3818.3,3817.7,0.00397897]
[1641396408165,1.27683942,3818.2,3817.7,0.00397897]
[1641396408363,0.62187942,3818.2,3817.7,0.00397897]
[1641396409265,3.53685689,3818.2,3817.7,0.00397897]
[1641396409469,3.49841123,3818.2,3817.7,0.00397897]
[1641396409664,3.49841123,3818.2,3817.8,0.00092087]
[1641396409868,0.37913684,3818.6,3817.8,0.00092087]
[1641396410070,0.00113684,3818.6,3818.0,0.65488]
[1641396410468,0.00113684,3818.6,3818.1,0.00170527]
[1641396410868,0.89767849,3818.5,3818.1,0.00170527]
[1641396411296,0.89767849,3818.5,3818.0,0.6571737]
[1641396411698,0.89767849,3818.5,3818.1,0.00170527]
[1641396412299,0.72811159,3818.4,3818.1,0.00170527]
[1641396412898,0.72811159,3818.4,3818.1,1.76446251]
[1641396414401,0.72811159,3818.4,3818.1,0.00170527]
[1641396415852,0.72811159,3818.4,3818.1,1.76446251]
[1641396420104,0.72811159,3818.4,3818.1,0.00170527]
[1641396420503,5.72811159,3818.4,3818.2,0.00088084]
[1641396420701,5.72811159,3818.4,3818.2,0.65572084]
[1641396421502,5.72811159,3818.4,3818.3,1.76275724]
[1641396422102,5.0,3818.4,3818.3,1.76275724]
[1641396422850,5.0,3818.4,3818.2,0.65572084]
[1641396423247,5.62990512,3818.4,3818.2,0.65572084]
[1641396424348,5.0,3818.4,3818.2,0.65572084]
[1641396424553,5.0,3818.4,3818.3,2.96031904]
[1641396424853,5.0,3818.4,3818.3,3.72321309]
[1641396425252,1.7705067,3819.1,3818.3,19.05321309]
[1641396425450,1.7705067,3819.1,3818.9,0.77817946]
[1641396425652,0.0022737,3819.0,3818.9,1.11768488]
[1641396425852,0.0022737,3819.0,3818.9,1.37817946]
[1641396426806,0.0022737,3819.0,3818.9,2.03283086]
[1641396427407,1.8270454,3819.7,3818.9,2.03283086]
[1641396427613,1.8270454,3819.7,3819.1,1.30932]
[1641396427614,0.81967337,3819.7,3819.1,1.30932]
[1641396427807,0.00113685,3819.2,3819.1,1.30932]
[1641396428006,0.00113685,3819.2,3819.1,2.6186358]
[1641396428206,0.00113685,3819.2,3819.1,4.38936012]
[1641396429308,0.00113685,3819.2,3819.1,7.40053652]
[1641396429508,1.1482,3820.1,3819.2,5.2]
[1641396429709,1.1482,3820.1,3819.2,0.8826]
[1641396429911,0.00454738,3820.0,3819.2,0.8826]
[1641396430355,0.00397896,3819.9,3819.7,0.65451]
[1641396430755,0.00341054,3819.8,3819.7,1.96353]
[1641396430956,0.00341054,3819.8,3819.7,3.30859808]
[1641396431155,4.65622522,3820.6,3819.7,3.30859808]
[1641396431357,4.65622522,3820.6,3820.1,0.6544]
[1641396431556,1.00132522,3820.6,3820.4,1.01804459]
[1641396431755,1.1668,3821.0,3820.5,1.30879]
[1641396431955,3.71688643,3821.2,3820.5,1.30879]
[1641396432155,0.00454738,3820.6,3820.5,1.3087857]
[1641396432955,0.00454738,3820.6,3820.5,1.6087857]
[1641396433156,0.00454738,3820.6,3820.5,1.9087857]
[1641396433797,0.00454738,3820.6,3820.5,2.563175]
[1641396434598,0.00454738,3820.6,3820.5,2.263175]
[1641396434798,0.00454738,3820.6,3820.5,0.3]
[1641396434999,0.00454738,3820.6,3820.3,4.37986665]
[1641396435000,0.00454738,3820.6,3820.4,0.6]
[1641396435408,0.00397896,3820.5,3820.4,0.6]
[1641396435907,0.00397896,3820.5,3820.2,0.65441]
[1641396436105,0.00397896,3820.5,3819.9,1.30919]
[1641396436305,0.00341054,3820.4,3819.9,1.30919]
[1641396436705,0.00284211,3820.3,3819.9,1.30919]
[1641396436906,0.98545211,3820.7,3820.0,0.80199123]
[1641396437106,0.00454738,3820.6,3820.0,0.8036965]
[1641396437307,0.00454738,3820.6,3820.1,0.95568424]
[1641396437557,0.00113685,3820.5,3820.1,0.30113684]
[1641396437959,0.00341054,3820.9,3820.1,0.30113684]
[1641396438157,0.00341054,3820.9,3820.3,1.30911]
[1641396438358,0.00284212,3820.8,3820.3,1.30911]
[1641396438557,0.00284212,3820.8,3820.4,0.3]
[1641396438760,0.0022737,3820.7,3820.5,0.6545282]
[1641396439162,0.00170527,3820.6,3820.5,0.6545282]
[1641396439361,0.00170527,3820.6,3820.5,0.65454]
[1641396439561,0.00341054,3820.6,3820.5,0.65454]
[1641396439965,0.00341054,3820.6,3820.5,0.34964]
[1641396441609,1.00341054,3820.6,3820.4,0.3]
[1641396441808,0.00341054,3820.6,3820.3,0.65457]
[1641396442010,0.65577685,3820.5,3820.3,0.65457]
[1641396443413,0.00113685,3820.5,3820.3,0.65457]
[1641396443611,0.00113685,3820.5,3820.3,0.95457]
[1641396443612,0.55389263,3820.4,3820.3,0.95457]
[1641396443810,0.00113685,3820.5,3820.3,0.95457]
[1641396444612,1.77159281,3820.9,3820.5,0.6544321]
[1641396444812,0.00108611,3820.9,3820.6,1.3089]
[1641396445059,0.00170527,3820.8,3820.6,1.6089]
[1641396445264,0.00170527,3820.8,3820.6,2.26335]
[1641396445467,0.00113685,3820.7,3820.6,2.56335]
[1641396445665,0.00113685,3820.7,3820.6,4.1784103]
[1641396446065,0.00113685,3820.7,3820.6,2.8695103]
[1641396446466,0.00113685,3820.7,3820.6,3.5239003]
[1641396446767,1.7705067,3821.4,3821.0,0.6452386]
[1641396446964,1.7705067,3821.4,3821.1,0.6543371]
[1641396447166,0.00284211,3821.2,3821.1,1.6086871]
[1641396447367,0.00284211,3821.2,3821.1,0.9543371]
[1641396448812,1.7705067,3821.9,3821.1,0.9543371]
[1641396448813,1.7705067,3821.9,3821.1,1.6086771]
[1641396449006,1.7705067,3821.9,3821.4,0.6542773]
[1641396449206,0.00284212,3821.7,3821.3,2.6171046]
[1641396449407,0.00284212,3821.7,3821.4,0.3]
[1641396449606,0.0022737,3821.6,3821.4,0.3]
[1641396449807,0.0022737,3821.6,3821.4,0.95428]
[1641396450007,2.70936194,3821.9,3821.4,2.26291]
[1641396450008,0.00170528,3821.5,3821.4,2.26291]
[1641396450213,0.00170528,3821.5,3821.4,1.60863]
[1641396450613,0.71347866,3821.7,3821.4,1.60863]
[1641396450822,0.71347866,3821.7,3821.4,1.30863]
[1641396451016,0.71347866,3821.7,3820.9,3.72530665]
[1641396451017,0.378,3821.6,3821.0,0.65457]
[1641396451216,0.378,3821.6,3820.9,0.97548]
[1641396451412,0.378,3821.6,3821.1,0.0022737]
[1641396451613,2.0325,3821.6,3821.0,0.00284212]
[1641396452014,1.7705067,3821.2,3821.0,0.00284212]
[1641396452215,4.728,3821.1,3821.0,0.00284212]
[1641396452412,0.378,3821.1,3821.0,0.00284212]
[1641396452667,1.378,3821.1,3821.0,0.00284212]
[1641396452865,0.378,3821.1,3821.0,0.30284212]
[1641396453063,1.378,3821.1,3821.0,0.30284212]
[1641396453264,1.7705067,3821.2,3821.0,0.60284212]
[1641396453465,0.72788695,3821.1,3821.0,0.30284212]
[1641396453668,0.72788695,3821.1,3821.0,0.95444]
[1641396453871,0.72788695,3821.1,3820.9,2.9388656]
[1641396453872,1.10588695,3821.1,3820.9,2.28441]
[1641396454069,0.378,3821.1,3820.9,2.28441]
[1641396454970,0.378,3821.1,3821.0,0.3]
[1641396455571,1.378,3821.1,3821.0,0.3]
[1641396455770,0.378,3821.1,3821.0,0.3]
[1641396455972,1.378,3821.1,3821.0,0.3]
[1641396457715,3.1485067,3821.1,3821.0,0.3]
[1641396458515,1.378,3821.1,3821.0,0.3]
[1641396459115,0.378,3821.1,3821.0,0.3]
[1641396460762,5.378,3821.1,3821.0,0.3]
[1641396462061,6.378,3821.1,3821.0,0.3]
[1641396462461,6.3711702,3821.1,3821.0,0.3]
[1641396465211,6.3711702,3821.1,3820.9,2.2845671]
[1641396465412,6.3711702,3821.1,3820.9,1.6300071]
[1641396465413,1.0,3821.0,3820.9,1.6300071]
[1641396465712,1.0,3821.0,3820.9,1.63341765]
[1641396466517,1.0,3821.0,3820.9,2.23341765]
[1641396469669,1.0,3821.0,3820.9,1.63341765]
[1641396471410,1.0,3821.0,3820.9,1.93341765]
[1641396472411,1.0,3821.0,3820.9,1.63341765]
[1641396472810,1.0,3821.0,3820.9,2.23341765]
[1641396473512,0.95,3821.0,3820.9,2.23341765]
[1641396474012,5.0,3821.1,3820.9,2.23341765]
[1641396474216,5.00672319,3821.1,3820.9,2.23341765]
[1641396474413,5.00672319,3821.1,3821.0,0.00284212]
[1641396475463,6.38472319,3821.1,3821.0,0.00284212]
[1641396475663,13.50522989,3821.1,3821.0,4.212e-05]
[1641396476063,13.50522989,3821.1,3820.7,0.00174739]
[1641396476263,0.65467,3820.9,3820.7,0.00174739]
[1641396476462,8.08591405,3820.8,3820.7,0.00174739]
[1641396476663,4.38591405,3820.8,3820.7,0.00174739]
[1641396476866,2.03591405,3820.8,3820.7,0.00174739]
[1641396477064,1.03591405,3820.8,3820.7,0.00174739]
[1641396477263,2.03591405,3820.8,3820.7,0.00174739]
[1641396477664,1.03591405,3820.8,3820.7,0.00174739]
[1641396477863,2.03591405,3820.8,3820.7,0.00174739]
[1641396479518,1.378,3820.8,3820.7,0.00174739]
[1641396479915,0.378,3820.8,3820.7,0.00174739]
[1641396480119,1.378,3820.8,3820.7,0.00174739]
[1641396480319,0.378,3820.8,3820.7,0.00174739]
[1641396480519,1.378,3820.8,3820.7,0.00174739]
[1641396480818,0.378,3820.8,3820.7,0.00174739]
[1641396482566,1.378,3820.8,3820.7,0.00174739]
[1641396482760,0.378,3820.8,3820.7,0.00174739]
[1641396482962,1.378,3820.8,3820.7,0.00174739]
[1641396483462,0.378,3820.8,3820.7,0.00174739]
[1641396483661,1.378,3820.8,3820.7,0.00174739]
[1641396484362,6.378,3820.8,3820.7,0.00174739]
[1641396491561,11.6126,3820.8,3820.7,0.00174739]
[1641396499177,12.14821855,3820.8,3820.7,0.00174739]
[1641396499376,10.6126,3820.8,3820.7,0.00174739]
[1641396499577,10.2346,3820.8,3820.7,0.00174739]
[1641396499779,10.2346,3820.8,3820.7,0.03516405]
[1641396500983,4.99911,3820.8,3820.7,0.03516405]
[1641396501413,0.00107402,3821.1,3820.7,0.03516405]
[1641396501711,0.00107402,3821.1,3820.9,0.65445]
[1641396501910,0.00107402,3821.1,3820.9,1.41391491]
[1641396502111,0.00107402,3821.1,3820.9,1.75183252]
[1641396503311,2.76767189,3821.7,3820.9,1.75183252]
[1641396503513,2.76767189,3821.7,3821.2,1.9632929]
[1641396503713,0.00336842,3821.6,3821.2,0.3]
[1641396503913,0.00336842,3821.6,3821.2,0.6]
[1641396504112,0.0028,3821.5,3821.2,0.6]
[1641396504411,0.00223157,3821.4,3821.3,1.30888]
[1641396504813,0.00223157,3821.4,3821.3,1.60888]
[1641396505072,0.00223157,3821.4,3821.3,2.9177561]
[1641396505675,2.87815117,3821.4,3821.3,2.9177561]
[1641396505873,1.00223157,3821.4,3821.3,1.30888]
[1641396506073,0.00223157,3821.4,3821.3,1.30888]
[1641396510313,0.00223157,3821.4,3821.3,1.60888]
[1641396511913,0.00223157,3821.4,3821.3,1.30888]
[1641396516917,0.00223157,3821.4,3821.3,1.90888]
[1641396521671,1.76767189,3821.7,3821.4,0.6543612]
[1641396522072,0.00113685,3821.6,3821.5,0.3]
[1641396522471,0.00113685,3821.6,3821.4,0.3]
[1641396522670,0.00113685,3821.6,3821.5,0.654371]
[1641396523673,1.76767189,3821.9,3821.6,0.65434]
[1641396523921,2.82884088,3822.0,3821.7,0.6543474]
[1641396524114,0.00113685,3821.8,3821.7,0.6543474]
[1641396525420,0.37913685,3821.8,3821.6,2.2630348]
[1641396525620,0.37913685,3821.8,3821.6,1.9630348]
[1641396525821,0.37913685,3821.8,3821.6,2.2630348]
[1641396526021,0.22369092,3821.8,3821.6,2.2630348]
[1641396526225,1.76767189,3822.0,3821.7,3.04667515]
[1641396526426,1.76767189,3822.0,3821.7,0.01203391]
[1641396526623,4.48914086,3822.6,3821.7,0.01203391]
[1641396526821,4.48914086,3822.6,3821.8,1.9626039]
[1641396527021,4.48914086,3822.6,3822.0,1.30837]
[1641396527223,0.82590771,3822.8,3822.1,1.04390688]
[1641396527423,0.62341835,3822.6,3822.1,1.69809688]
[1641396527674,0.62341835,3822.6,3822.3,1.30837]
[1641396527871,0.82590771,3822.8,3822.4,0.6]
[1641396528173,0.53954701,3822.6,3822.4,1.9083497]
[1641396528371,0.99827835,3823.1,3822.4,1.9083497]
[1641396528572,3.49086251,3823.2,3822.7,1.3081426]
[1641396528777,0.00170527,3823.0,3822.8,0.3]
[1641396528975,3.49086251,3823.3,3822.8,0.3]
[1641396529271,0.00113684,3823.2,3822.8,1.30815]
[1641396529874,1.00113684,3823.2,3822.9,1.3081404]
[1641396530071,0.00113684,3823.2,3822.9,2.5622204]
[1641396530779,0.00113684,3823.2,3822.9,3.8703804]
[1641396530978,1.00107402,3823.6,3822.9,3.8703804]
[1641396530979,1.00107402,3823.6,3823.0,1.3081385]
[1641396531183,0.00107402,3823.6,3823.2,0.65404]
[1641396531416,0.00107402,3823.6,3823.2,0.95404]
[1641396531417,0.00113685,3823.4,3823.2,0.95404]
[1641396531623,0.00113685,3823.4,3823.2,1.25404]
[1641396531917,0.00107402,3823.6,3823.3,0.81590844]
[1641396532121,0.00107402,3823.6,3823.2,2.5621044]
[1641396533124,0.00107402,3823.6,3823.3,0.65401]
[1641396533321,3.10138958,3824.0,3823.5,1.3080536]
[1641396533725,0.00284212,3823.9,3823.5,1.3080536]
[1641396534227,0.00227369,3823.8,3823.6,0.65402]
[1641396534623,0.00170527,3823.7,3823.6,0.65402]
[1641396534825,0.00170527,3823.7,3823.5,1.3080536]
[1641396535268,0.00113685,3823.6,3823.5,1.3080536]
[1641396535466,0.00113685,3823.6,3823.4,1.30803]
[1641396536667,2.64924049,3823.6,3823.4,1.30803]
[1641396537470,1.76654541,3823.5,3823.4,1.30803]
[1641396537873,2.43440213,3823.5,3823.4,1.30803]
[1641396538271,0.66785672,3823.5,3823.4,1.30803]
[1641396538933,1.04585672,3823.5,3823.0,0.00113685]
[1641396539132,4.725,3823.4,3823.0,0.00113685]
[1641396539437,0.65434,3823.2,3822.7,0.00397896]
[1641396539631,0.378,3823.1,3822.7,0.00397896]
[1641396539832,0.64711478,3822.9,3822.4,0.00568423]
[1641396540033,0.378,3822.8,3822.4,0.00568423]
[1641396540235,6.2312,3823.3,3822.4,0.00568423]
[1641396540236,0.378,3822.7,3822.6,0.65433]
[1641396540634,0.378,3823.2,3822.6,0.65887739]
[1641396540837,1.76962717,3822.9,3822.6,0.65887739]
[1641396541034,1.76962717,3822.9,3822.7,0.30397896]
[1641396541434,3.03244075,3823.2,3822.7,0.30397896]
[1641396541435,1.76962717,3823.0,3822.8,1.31172314]
[1641396541835,1.76962717,3823.0,3822.9,0.00284212]
[1641396543871,1.378,3823.2,3822.9,0.65705212]
[1641396544075,3.30866075,3823.1,3822.9,0.65705212]
[1641396544272,3.68666075,3823.1,3823.0,0.00227369]
[1641396544473,3.03244075,3823.1,3823.0,0.00227369]
[1641396544675,0.378,3823.1,3823.0,0.00227369]
[1641396547523,0.9539149,3823.1,3823.0,0.00227369]
[1641396547723,0.378,3823.1,3823.0,0.00227369]
[1641396556729,5.2312,3823.3,3823.0,0.30227369]
[1641396556928,5.2312,3823.3,3823.0,0.95633369]
[1641396557128,5.2312,3823.3,3823.1,0.00170527]
[1641396557790,5.2312,3823.3,3823.1,0.65572837]
[1641396558191,5.2312,3823.3,3823.2,0.00113685]
[1641396559795,7.05,3823.2,3822.9,0.65421]
[1641396560004,20.06718573,3823.0,3821.9,3.612066]
[1641396560202,4.725,3822.8,3822.2,1.77984195]
[1641396560397,5.6092,3822.7,3822.2,1.77984195]
[1641396560596,6.26359,3822.7,3822.3,0.00511581]
[1641396561001,3.38734979,3822.5,3822.3,0.00511581]
[1641396561197,12.6592,3822.4,3822.3,0.00511581]
[1641396561433,12.6592,3822.4,3821.8,0.00795792]
[1641396562032,12.6592,3822.4,3821.7,0.00852635]
[1641396562233,5.6092,3822.4,3821.7,0.00852635]
[1641396562434,5.2312,3822.4,3822.0,0.65434]
[1641396562635,3.3568,3822.4,3822.0,0.99243391]
[1641396562837,3.3568,3822.4,3822.1,0.00625265]
[1641396563433,8.3568,3822.4,3822.1,1.31449265]
[1641396563633,3.12407,3822.4,3822.1,2.25626393]
[1641396563833,3.12407,3822.4,3822.3,0.03731615]
[1641396564036,3.12407,3822.4,3822.3,0.33731615]
[1641396564235,1.75336765,3823.2,3822.4,0.13391972]
[1641396564437,1.75336765,3823.2,3822.5,1.99746511]
[1641396564636,1.75336765,3823.5,3822.5,3.07983174]
[1641396564836,1.75336765,3823.5,3823.0,0.6540019]
[1641396565082,0.00113685,3823.4,3823.1,0.71209383]
[1641396565288,0.00113685,3823.4,3823.3,0.89240271]
[1641396565489,0.00113685,3823.4,3823.3,1.19240271]
[1641396565685,0.00113685,3823.4,3823.3,1.49240271]
[1641396567186,0.00113685,3823.4,3823.3,2.22823614]
[1641396567487,1.75336765,3823.8,3823.3,2.22823614]
[1641396567685,1.75336765,3823.8,3823.5,0.6539455]
[1641396567888,0.00170527,3823.7,3823.6,1.3079]
[1641396568089,0.00170527,3823.7,3823.6,0.95395]
[1641396568289,1.75620977,3823.9,3823.6,1.25395]
[1641396568486,1.75620977,3823.9,3823.7,0.3]
[1641396568686,0.00227369,3823.8,3823.7,0.3]
[1641396568936,0.00227369,3823.8,3823.6,0.3]
[1641396568937,0.00227369,3823.8,3823.6,0.95396]
[1641396569136,0.00227369,3823.8,3823.7,0.3]
[1641396569739,1.75564134,3823.8,3823.7,0.3]
[1641396573083,1.75564134,3823.8,3823.6,0.65396]
[1641396573288,5.29143149,3823.8,3823.6,0.65396]
[1641396573484,2.13364134,3823.8,3823.4,1.3079]
[1641396573684,2.14655613,3823.8,3823.0,1.30835]
[1641396573884,2.14655613,3823.8,3823.2,0.65421]
[1641396574084,0.38027369,3823.8,3823.2,0.65421]